[Event "FIDE WY-U16 Olympiad 2022"]
[Site "Nakhchivan"]
[Date "2022.10.04"]
[Round "3.26"]
[White "Galaviz Medina, Atlas Adomaitis"]
[Black "Khamdamova, Afruza"]
[Result "1/2-1/2"]
[ECO "D37"]
[WhiteElo "2131"]
[BlackElo "2118"]
[Annotator "TA"]
[PlyCount "160"]
[EventDate "2022.10.02"]
[EventType "team-tourn"]
[EventCountry "AZE"]
[SourceTitle "playchess.com"]
[Source "ChessBase"]
[SourceQuality "1"]
[WhiteTeam "Mexico"]
[BlackTeam "Uzbekistan"]
[WhiteTeamCountry "MEX"]
[BlackTeamCountry "UZB"]
[TimeControl "40/5400+30:1800+30"]

{[%evp 24,160,6,12,32,50,51,27,37,13,27,15,82,46,62,69,44,23,36,25,33,-11,-27,-22,10,15,18,1,16,14,14,0,22,8,8,15,29,0,32,18,30,0,0,0,0,0,0,0,0,-36,0,0,0,0,0,0,0,0,0,0,0,0,0,0,0,0,0,-8,-9,-10,-11,-25,0,0,8,0,0,0,0,0,0,0,40,40,47,49,72,38,162,0,0,0,0,0,0,0,0,0,0,0,0,0,0,0,0,0,0,0,0,0,0,0,0,0,0,0,0,0,0,0,0,0,0,0,0,0,0,0,0,0,0,0,0,0,0,0,0,0,0]} 1. d4 {[%emt 0:00:01]} Nf6 {[%emt 0:00:08]} 2. Nf3 {[%emt 0:00:04]} d5 {[%emt 0:00:05]} 3. c4 {[%emt 0:00:05]} e6 {[%emt 0:00:03]} 4. Nc3 {[%emt 0:00:03]} Be7 {[%emt 0:00:04]} 5. g3 {[%emt 0:03:54]} O-O {[%emt 0:01:05]} 6. Bg2 {[%emt 0:00:25]} c6 {[%emt 0:00:33]} 7. O-O {[%emt 0:03:04]} b6 {[%emt 0:03:40]} 8. Ne5 {[%emt 0:18:11]} Bb7 {[%emt 0:02:33]} 9. e4 {[%emt 0:02:20]} dxc4 {[%emt 0:16:56]} 10. Nxc4 {[%emt 0:03:26]} Ba6 {[%emt 0:00:44]} 11. b3 {[%emt 0:00:38]} b5 {[%emt 0:00:28]} 12. Ne5 {[%emt 0:03:54]} b4 {[%emt 0:01:00]} 13. Ne2 {[%emt 0:00:05]} Bxe2 {[%emt 0:13:12] E06: Closed Catalan: Early deviations.} 14. Qxe2 {[%emt 0:00:04]} Qxd4 {[%emt 0:00:04]} 15. Bb2 {[%emt 0:00:06]} Qb6 {[%emt 0:00:04] White has an edge.} 16. Rac1 {[%emt 0:01:42][%mdl 1024] White has compensation.} a5 {[%emt 0:13:10]} 17. Qc2 {[%emt 0:28:07]} Rc8 {[%emt 0:04:29]} (17... Rd8 $11 {keeps the balance.}) 18. Rfd1 {[%emt 0:04:39]} Ra7 {[%emt 0:07:50]} 19. Nc4 {[%emt 0:02:52] White is more active.} Qb5 {[%emt 0:01:27] [#]} 20. Be5 $146 {[%emt 0:07:59]} ({Predecessor:} 20. Nd6 Bxd6 21. Rxd6 Rd7 22. Bf1 Qh5 23. Be2 Ng4 24. Bxg4 Qxg4 25. Rxd7 Nxd7 26. Qd3 {1-0 (73) Wang,P (2454)-McLaren,L (2241) Auckland 2014}) 20... Ne8 {[%emt 0:13:45]} 21. Bf1 {[%emt 0:09:17] [#] Black must now prevent Nd6. This bishop pair is nice.} Qb7 $1 {[%emt 0:00:05]} 22. Nd6 {[%emt 0:02:34]} Nxd6 {[%emt 0:00:16]} 23. Bxd6 {[%emt 0:00:05]} Bxd6 {[%emt 0:03:18]} 24. Rxd6 {[%emt 0:00:01]} h6 {[%emt 0:08:37]} 25. e5 {[%emt 0:01:00]} c5 {[%emt 0:00:56]} 26. Rcd1 {[%emt 0:00:39] White threatens Rd8+ and mate.} Qe7 {[%emt 0:00:17] Inhibits Rd8+.} 27. Qe4 {[%emt 0:00:30]} Nd7 {[%emt 0:00:51]} 28. Bb5 {[%emt 0:04:45]} Nf8 {[%emt 0:00:05]} 29. f4 {[%emt 0:01:37]} Rac7 {[%emt 0:06:13]} 30. Qc4 {[%emt 0:00:24]} h5 {[%emt 0:00:38]} 31. Qe2 {[%emt 0:01:22]} g6 {[%emt 0:00:46]} 32. Qd3 {[%emt 0:00:18]} Kg7 {[%emt 0:00:31]} 33. Ra6 {[%emt 0:01:12]} Ra7 {[%emt 0:00:56]} 34. Rd6 {[%emt 0:00:26]} Rac7 {[%emt 0:00:31]} 35. Kf2 {[%emt 0:00:06]} Rb8 {[%emt 0:00:51]} 36. Rd8 {[%emt 0:00:57]} Rcc8 {[%emt 0:01:00]} ({Don't do} 36... c4 37. bxc4 (37. Bxc4 Rxd8 38. Qxd8 Qc5+ 39. Kg2 Qc6+ 40. Kg1 Qb6+ 41. Kh1 Qc6+ 42. Kg1 Qb6+ 43. Kh1 Qc6+ 44. Kg1 $11) 37... Rcc8 38. Rxc8 Rxc8 39. h4 $16) (36... Rcb7 $5 {[%cal Rb7b5]} 37. Rxb8 Rxb8 $11) 37. Rd6 {[%emt 0:00:56]} Qa7 {[%emt 0:00:27] ...c4+ is the strong threat.} 38. Ra6 {[%emt 0:00:58]} Qb7 {[%emt 0:00:21]} 39. Bc4 {[%emt 0:00:09]} ({Avoid the trap} 39. Rxa5 $2 Qb6 40. Ra6 Qxb5 $19) 39... Ra8 {[%emt 0:01:00]} 40. Qf3 {[%emt 0:00:30]} Qxf3+ {[%emt 0:00:32]} 41. Kxf3 {[%emt 0:30:01]} Rxa6 {[%emt 0:30:53]} 42. Bxa6 $11 {[%emt 0:00:01][%mdl 4096] Endgame KRB-KRN} Ra8 {[%emt 0:00:23]} 43. Bb5 {[%emt 0:00:09]} Rb8 {[%emt 0:00:00]} 44. Bc6 {[%emt 0:00:00]} Rc8 {[%emt 0:00:00]} 45. Bb5 {[%emt 0:00:00]} g5 {[%emt 0:00:00]} 46. fxg5 {[%emt 0:00:00]} Ng6 {[%emt 0:00:00]} 47. Ke4 {[%emt 0:00:00]} Ne7 {[%emt 0:00:00]} 48. Bc4 {[%emt 0:00:00] Inhibits Nd5.} Rc7 {[%emt 0:00:00] Inhibits Rd7.} 49. Kf4 {[%emt 0:00:00]} Ng6+ {[%emt 0:00:00]} 50. Ke4 {[%emt 0:00:00]} Ne7 {[%emt 0:00:00]} 51. h4 {[%emt 0:00:00][%cal Bh2h4,Bh4h5,Bh5h6][%mdl 32]} Nf5 {[%emt 0:00:00]} 52. Kf4 {[%emt 0:00:00]} Nd4 {[%emt 0:00:56]} 53. g4 {[%emt 0:00:00]} hxg4 {[%emt 0:00:37][%cal Og4g3]} 54. h5 {[%emt 0:00:00]} Nf5 {[%emt 0:01:08]} 55. h6+ {[%emt 0:00:00]} Kg6 {[%emt 0:00:35] [#]} (55... Kh7 $1 $14) 56. Kxg4 $2 {[%emt 0:00:29]} ({White should play} 56. Rd8 $1 $18 {Strongly threatening Bd3.} g3 57. Kf3) 56... Ne3+ {[%emt 0:00:26] The position is equal.} 57. Kh4 $1 {[%emt 0:00:10]} Nxc4 {[%emt 0:00:53]} (57... Nxd1 $2 58. Bd3+ f5 59. exf6+ Kf7 60. Be2 $18) 58. bxc4 {[%emt 0:00:10] KR-KR} a4 {[%emt 0:00:16]} 59. Rd8 {[%emt 0:00:27] aiming for Rg8+.} Kh7 {[%emt 0:01:21] Against Rg8} 60. Ra8 {[%emt 0:02:22] Inhibits Ra7.} Rd7 {[%emt 0:00:31]} 61. Rxa4 {[%emt 0:01:06]} Rd1 {[%emt 0:00:05]} 62. Ra7 {[%emt 0:00:46]} Rh1+ {[%emt 0:00:24]} 63. Kg4 {[%emt 0:00:09]} Kg6 {[%emt 0:01:06]} 64. Rc7 {[%emt 0:00:46]} Rg1+ {[%emt 0:00:04]} 65. Kf4 {[%emt 0:00:06]} Rf1+ {[%emt 0:00:12]} 66. Ke4 {[%emt 0:02:26]} Re1+ {[%emt 0:00:03]} 67. Kf4 {[%emt 0:00:34]} Rf1+ {[%emt 0:00:04]} 68. Kg4 {[%emt 0:00:51]} Rg1+ {[%emt 0:00:04]} 69. Kf3 {[%emt 0:00:08]} Rxg5 {[%emt 0:00:30]} 70. Rxc5 {[%emt 0:00:15]} Kxh6 {[%emt 0:00:16]} 71. Rb5 {[%emt 0:01:29]} Kg6 {[%emt 0:00:12]} 72. Kf4 {[%emt 0:00:30]} Rg2 {[%emt 0:00:04]} 73. Rxb4 {[%emt 0:00:03]} Rxa2 {[%emt 0:00:05]} 74. Rb8 {[%emt 0:00:07]} f6 {[%emt 0:00:38]} 75. exf6 {[%emt 0:00:24]} Kxf6 {[%emt 0:00:03]} 76. Ke4 {[%emt 0:00:05]} Ke7 {[%emt 0:00:09]} 77. Kd4 {[%emt 0:00:18]} Kd7 {[%emt 0:00:14]} 78. Rb6 {[%emt 0:00:27]} Ra5 {[%emt 0:00:19]} 79. c5 {[%emt 0:00:44]} Ra4+ {[%emt 0:00:07]} 80. Ke5 {[%emt 0:00:24]} Rc4 {[%emt 0:00:05] Weighted Error Value: White=0.13 (very precise) /Black=0.12 (very precise)} 1/2-1/2

[Event "FIDE WY-U16 Olympiad 2022"]
[Site "Nakhchivan"]
[Date "2022.10.04"]
[Round "3.26"]
[White "Pal, Rohan"]
[Black "Isfandiyarli, Kamal"]
[Result "0-1"]
[ECO "B20"]
[WhiteElo "1871"]
[BlackElo "1585"]
[Annotator "NA RC COMBH"]
[PlyCount "106"]
[EventDate "2022.10.02"]
[EventType "team-tourn"]
[EventCountry "AZE"]
[SourceTitle "playchess.com"]
[Source "ChessBase"]
[SourceQuality "1"]
[WhiteTeam "England"]
[BlackTeam "Azerbaijan"]
[WhiteTeamCountry "ENG"]
[BlackTeamCountry "AZE"]
[TimeControl "40/5400+30:1800+30"]

1. e4 {[%emt 0:00:04]} c5 {[%emt 0:00:44]} 2. Be2 {[%emt 0:00:11]} e6 {[%emt 0:03:57]} 3. f4 {[%emt 0:00:26]} d5 {[%emt 0:08:29]} 4. d3 {[%emt 0:00:04]} Nf6 {[%emt 0:00:36]} 5. e5 {[%emt 0:00:33]} Nfd7 {[%emt 0:00:06]} 6. Nf3 {[%emt 0:00:25]} Nc6 {[%emt 0:01:00]} 7. O-O {[%emt 0:02:16]} b5 {[%emt 0:09:08]} 8. c4 {[%emt 0:18:50]} bxc4 {[%emt 0:10:28]} 9. dxc4 $11 {[%emt 0:00:07]} d4 {[%emt 0:00:38]} 10. Bd3 {[%emt 0:06:26]} Bb7 {[%emt 0:05:25]} 11. Ng5 {[%emt 0:14:51]} Be7 12. Ne4 {[%emt 0:12:49]} Nb4 {[%emt 0:03:14]} 13. b3 {[%emt 0:08:14]} O-O {[%emt 0:11:58]} 14. Na3 {[%emt 0:02:50]} Nxd3 {[%emt 0:00:24]} 15. Qxd3 {[%emt 0:00:05]} Qb6 {[%emt 0:05:23]} 16. Bd2 {[%emt 0:09:02]} Qc6 {[%emt 0:00:40]} 17. Rae1 {[%emt 0:00:06]} f5 {[%emt 0:00:22]} 18. exf6 {[%emt 0:00:20]} Nxf6 {[%emt 0:00:08]} 19. Nxf6+ {[%emt 0:00:12]} Rxf6 {[%emt 0:00:10]} 20. Re2 {[%emt 0:05:33]} Rg6 {[%emt 0:00:22]} 21. Qh3 {[%emt 0:03:35]} Rf8 {[%emt 0:09:19]} 22. Be1 {[%emt 0:05:13]} d3 {[%emt 0:04:59]} 23. Rd2 {[%emt 0:02:18]} Qe4 {[%emt 0:03:11]} 24. Rdf2 {[%emt 0:03:30]} Rxf4 {[%emt 0:02:51]} 25. Bd2 {[%emt 0:02:02]} Rh4 {[%emt 0:01:03]} 26. Qf3 {[%emt 0:01:00]} Qxf3 {[%emt 0:00:24]} 27. Rxf3 {[%emt 0:00:03]} Bxf3 {[%emt 0:00:07]} 28. Rxf3 {[%emt 0:00:04]} Rd4 {[%emt 0:02:32]} 29. Nb5 {[%emt 0:00:32]} Rd7 {[%emt 0:00:10]} 30. Nc3 {[%emt 0:01:59]} Bg5 {[%emt 0:00:58]} 31. Ne4 {[%emt 0:00:27]} Bxd2 {[%emt 0:00:09]} 32. Nxd2 {[%emt 0:00:02]} Rg5 {[%emt 0:01:19]} 33. Re3 {[%emt 0:00:44]} Kf7 {[%emt 0:00:28]} 34. Kf2 {[%emt 0:00:27]} e5 {[%emt 0:00:25]} 35. g3 {[%emt 0:00:54]} Ke6 {[%emt 0:00:33]} 36. Ke1 {[%emt 0:01:04]} Rh5 {[%emt 0:00:18]} 37. Nf3 {[%emt 0:00:37]} d2+ {[%emt 0:07:23]} 38. Kd1 {[%emt 0:00:45]} Rf5 {[%emt 0:00:34]} 39. g4 {[%emt 0:00:25]} Rf4 {[%emt 0:00:19]} 40. Rxe5+ {[%emt 0:00:47]} Kf6 {[%emt 0:00:11]} 41. g5+ {[%emt 0:30:33]} Kg6 {[%emt 0:30:09]} 42. Re3 {[%emt 0:00:27]} Kh5 {[%emt 0:01:18]} 43. Nxd2 {[%emt 0:00:00]} Kxg5 {[%emt 0:00:00]} 44. Kc1 {[%emt 0:00:00]} Kf5 {[%emt 0:00:00]} 45. Rh3 {[%emt 0:00:00]} Rf2 {[%emt 0:00:00]} 46. Rh5+ {[%emt 0:00:00]} Kg6 {[%emt 0:00:00]} 47. Rd5 {[%emt 0:00:00]} Rxd5 {[%emt 0:00:00]} 48. cxd5 {[%emt 0:00:00]} Rxh2 {[%emt 0:00:00]} 49. Ne4 {[%emt 0:00:00]} Kf5 {[%emt 0:00:00]} 50. d6 {[%emt 0:00:00]} Ke6 {[%emt 0:00:00]} 51. Nxc5+ {[%emt 0:00:00]} Kxd6 {[%emt 0:00:00]} 52. Ne4+ {[%emt 0:00:00]} Ke5 {[%emt 0:00:00]} 53. Ng5 {[%emt 0:00:00]} Kf5 {[%emt 0:00:00]} 0-1

[Event "FIDE WY-U16 Olympiad 2022"]
[Site "Nakhchivan"]
[Date "2022.10.04"]
[Round "3.27"]
[White "Abdukhakimov, Akbarali"]
[Black "Zacarias Rodriguez, Santiago"]
[Result "1-0"]
[ECO "A56"]
[WhiteElo "1777"]
[BlackElo "2123"]
[Annotator "TA"]
[PlyCount "65"]
[EventDate "2022.10.02"]
[EventType "team-tourn"]
[EventCountry "AZE"]
[SourceTitle "playchess.com"]
[Source "ChessBase"]
[SourceQuality "1"]
[WhiteTeam "Uzbekistan"]
[BlackTeam "Mexico"]
[WhiteTeamCountry "UZB"]
[BlackTeamCountry "MEX"]
[TimeControl "40/5400+30:1800+30"]

{[%evp 22,65,43,0,3,0,0,-41,-25,-61,-77,-50,0,-78,-85,-29986,-78,-87,207,201,231,206,238,188,195,185,174,209,197,179,362,379,592,583,575,549,568,555,743,741,4016,2815,2726,867,906,890]} 1. d4 {[%emt 0:00:14]} Nf6 {[%emt 0:00:07]} 2. c4 {[%emt 0:00:05]} c5 {[%emt 0:00:14]} 3. d5 {[%emt 0:00:07]} g6 {[%emt 0:00:15]} 4. Nc3 {[%emt 0:00:05]} Bg7 {[%emt 0:00:06]} 5. e4 {[%emt 0:00:06]} d6 {[%emt 0:00:03]} 6. Bd3 {[%emt 0:00:18]} O-O {[%emt 0:00:48]} 7. Nge2 {[%emt 0:00:38]} e6 {[%emt 0:07:05]} 8. O-O {[%emt 0:00:15]} exd5 {[%emt 0:00:21]} 9. exd5 {[%emt 0:00:31]} Re8 {[%emt 0:09:06]} 10. h3 {[%emt 0:04:42]} a6 {[%emt 0:25:57]} (10... Nfd7) 11. a4 {[%emt 0:08:37]} Nbd7 {[%emt 0:00:58]} 12. f4 {[%emt 0:00:45]} Nh5 {[%emt 0:03:00] has lost popularity (12...Nf8). E70: King's Indian: Miscellaneous lines with 4 e4, including 5 Nge2 and 5 Bd3 0-0 6 Nge2.} 13. g4 {[%emt 0:31:56]} Qh4 {[%emt 0:22:02] [#] aiming for ...Bd4+.} 14. Rf3 $146 {[%emt 0:07:43]} ({Predecessor:} 14. gxh5 Qxh3 15. Ne4 Nf6 16. Nf2 Qh4 17. f5 Nxh5 18. Kg2 Rxe2 19. Qxe2 Qg3+ 20. Kh1 Qh4+ 21. Kg2 Qg3+ 22. Kh1 {½-½ (22) Lomineishvili,M (2366)-Azaladze,S (2498) Tbilisi 2014}) 14... Ndf6 {[%emt 0:10:06][%cal Oc8g4] Hoping for ...Bxg4! Black is slightly better.} (14... Bd4+ 15. Kg2 Bxc3 16. bxc3 $14) 15. gxh5 {[%emt 0:19:50] Qf1 is the strong threat.} Bxh3 {[%emt 0:01:19]} 16. hxg6 {[%emt 0:00:16]} Nh5 {[%emt 0:13:14]} (16... Ng4 $15 17. gxf7+ (17. gxh7+ $2 Kh8 $17) 17... Kxf7) 17. gxf7+ {[%emt 0:13:40]} (17. gxh7+ Kh8 18. Rxh3 (18. Rf2 Bd4) 18... Qxh3 $17) (17. Ne4 $1 $11 hxg6 18. Nf2 (18. Nxd6 $2 Bd4+ 19. Be3 Bxe3+ 20. Rxe3 Rxe3 $19)) 17... Kxf7 $17 {[%emt 0:00:04] ( -> ...Bd4+)} 18. Ne4 $2 {[%emt 0:00:55][%mdl 8192] [#]} (18. Rf2 $2 Bd4 19. Bg6+ hxg6 20. Qxd4 cxd4 $19) (18. Rxh3 $17 Qxh3 19. Ne4 Rxe4 20. Bxe4) 18... Rxe4 $1 {[%emt 0:01:50][%mdl 512]} 19. Rxh3 {[%emt 0:04:43]} (19. Bxe4 Bd4+) 19... Bd4+ $2 {[%emt 0:00:56][%mdl 8192]} (19... Qxh3 $17 20. Bxe4 Re8) 20. Kh2 $1 $18 {[%emt 0:00:50][%cal Bg1h2,Bh2h1,Bh1h2,Bh2h3][%mdl 32]} Qf2+ {[%emt 0:00:09]} 21. Kh1 {[%emt 0:00:07]} Rxe2 {[%emt 0:00:27]} 22. Bxe2 {[%emt 0:00:25] The board is on fire.} Ng3+ {[%emt 0:02:36]} 23. Rxg3 {[%emt 0:00:06]} Qxg3 {[%emt 0:00:01][%cal Rg3h3]} 24. Bh5+ {[%emt 0:00:59]} Kf6 {[%emt 0:00:30][%cal Rg3h3]} 25. Qg4 {[%emt 0:00:12] Against Qh3+} Qe1+ {[%emt 0:00:12]} (25... Rg8 {might work better.} 26. Qxg3 Rxg3) 26. Kh2 {[%emt 0:00:22][%csl Gc1,Gf4][%cal Rg4g5]} Bg1+ {[%emt 0:01:13] [#]} (26... Qf2+ {keeps fighting.} 27. Kh3 Qf1+ 28. Qg2 Qxg2+ 29. Kxg2 Rg8+ 30. Kf3 Rg1) 27. Kh3 $1 {[%emt 0:00:27][%csl Gc1,Gf4][%cal Rg4g5] White is clearly winning.} ({But not} 27. Qxg1 $2 Qh4+ 28. Kg2 Rg8+ 29. Kf1 Rxg1+ 30. Kxg1 Qxh5 $19) 27... Qf1+ {[%emt 0:00:04]} 28. Qg2 {[%emt 0:00:21]} Qd3+ {[%emt 0:00:34]} 29. Qf3 {[%emt 0:00:22]} Qf5+ {[%emt 0:00:51]} 30. Bg4 {[%emt 0:00:15]} Qg6 {[%emt 0:00:13]} 31. f5 {[%emt 0:00:21]} Qg7 {[%emt 0:00:19]} 32. Be3 {[%emt 0:00:53]} Bxe3 {[%emt 0:00:15]} 33. Qxe3 {[%emt 0:00:04] Weighted Error Value: White=0.33/Black=1.15} 1-0

[Event "FIDE WY-U16 Olympiad 2022"]
[Site "Nakhchivan"]
[Date "2022.10.04"]
[Round "3.27"]
[White "Rzayev, Murad"]
[Black "Subramanian, Anusha"]
[Result "1/2-1/2"]
[ECO "E32"]
[WhiteElo "1699"]
[BlackElo "1840"]
[Annotator "NA RC COMBH"]
[PlyCount "89"]
[EventDate "2022.10.02"]
[EventType "team-tourn"]
[EventCountry "AZE"]
[SourceTitle "playchess.com"]
[Source "ChessBase"]
[SourceQuality "1"]
[WhiteTeam "Azerbaijan"]
[BlackTeam "England"]
[WhiteTeamCountry "AZE"]
[BlackTeamCountry "ENG"]
[TimeControl "40/5400+30:1800+30"]

1. d4 {[%emt 0:00:01]} Nf6 {[%emt 0:00:06]} 2. c4 {[%emt 0:00:05]} e6 {[%emt 0:00:04]} 3. Nc3 {[%emt 0:00:05]} Bb4 {[%emt 0:00:05]} 4. Qc2 {[%emt 0:00:07]} O-O {[%emt 0:00:07]} 5. Bg5 {[%emt 0:00:15]} d5 $11 {[%emt 0:00:39]} 6. e3 {[%emt 0:00:34]} b6 {[%emt 0:00:46]} 7. cxd5 {[%emt 0:02:56]} exd5 {[%emt 0:01:01]} 8. Bd3 {[%emt 0:01:10]} h6 {[%emt 0:00:34]} 9. Bh4 {[%emt 0:00:18]} c5 {[%emt 0:02:39]} 10. Nf3 {[%emt 0:04:00]} Bb7 {[%emt 0:02:48]} 11. O-O {[%emt 0:01:54]} Bxc3 {[%emt 0:07:40]} 12. bxc3 {[%emt 0:06:59]} Nbd7 {[%emt 0:03:56]} 13. Ne5 {[%emt 0:01:19]} Qc7 {[%emt 0:02:58]} 14. Nxd7 {[%emt 0:18:39]} Nxd7 {[%emt 0:00:19]} 15. f4 {[%emt 0:00:08]} Rac8 {[%emt 0:09:58]} 16. Qe2 {[%emt 0:02:33]} Qd6 {[%emt 0:14:02]} 17. g4 {[%emt 0:18:27]} c4 {[%emt 0:06:07]} 18. Bf5 {[%emt 0:02:11]} b5 {[%emt 0:09:28]} 19. g5 {[%emt 0:01:05]} g6 {[%emt 0:02:48]} 20. Bc2 {[%emt 0:01:31]} hxg5 {[%emt 0:10:48]} 21. Bxg5 {[%emt 0:01:36]} f5 {[%emt 0:01:51]} 22. h4 {[%emt 0:02:13]} Kf7 {[%emt 0:01:01]} 23. h5 {[%emt 0:02:17]} Rh8 {[%emt 0:00:46]} 24. hxg6+ {[%emt 0:04:22]} Qxg6 {[%emt 0:01:06]} 25. Qg2 {[%emt 0:02:55]} Nf6 {[%emt 0:05:42]} 26. Bd1 {[%emt 0:11:10]} Ne4 {[%emt 0:00:53]} 27. Rc1 {[%emt 0:00:42]} Rcg8 {[%emt 0:03:01]} 28. Bc2 {[%emt 0:02:05]} Nxc3 {[%emt 0:07:50]} 29. Bxf5 {[%emt 0:05:03]} Qxf5 {[%emt 0:00:21]} 30. Rxc3 {[%emt 0:00:06]} b4 {[%emt 0:00:38]} 31. Rxc4 {[%emt 0:01:03]} dxc4 {[%emt 0:00:47]} 32. Qxb7+ {[%emt 0:00:04]} Kg6 {[%emt 0:00:33]} 33. Qc6+ {[%emt 0:00:06]} Kg7 {[%emt 0:01:29]} 34. Qc7+ {[%emt 0:00:09]} Qf7 {[%emt 0:00:37]} 35. Qe5+ {[%emt 0:00:08]} Kh7 {[%emt 0:00:38]} 36. Kg2 {[%emt 0:01:28]} Kg6 {[%emt 0:02:41]} 37. Qe4+ {[%emt 0:01:34]} Qf5 {[%emt 0:01:02]} 38. Qc6+ {[%emt 0:00:21]} Kg7 {[%emt 0:00:49]} 39. Qc7+ {[%emt 0:00:19]} Qf7 {[%emt 0:00:44]} 40. Qe5+ {[%emt 0:00:07]} Kf8 {[%emt 0:00:27]} 41. Qd6+ {[%emt 0:30:20]} Kg7 {[%emt 0:30:09]} 42. Qe5+ {[%emt 0:00:09]} Kf8 {[%emt 0:00:14]} 43. Qd6+ {[%emt 0:00:06]} Kg7 {[%emt 0:00:08]} 44. Qe5+ {[%emt 0:00:04]} Kf8 {[%emt 0:00:08]} 45. Qd6+ {[%emt 0:00:04]} 1/2-1/2

[Event "FIDE WY-U16 Olympiad 2022"]
[Site "Nakhchivan"]
[Date "2022.10.04"]
[Round "3.28"]
[White "Hernandez Diaz, Paula Sofia"]
[Black "Bozorov, Javokhir"]
[Result "0-1"]
[ECO "A20"]
[WhiteElo "1759"]
[BlackElo "1844"]
[Annotator "NA RC COMBH"]
[PlyCount "71"]
[EventDate "2022.10.02"]
[EventType "team-tourn"]
[EventCountry "AZE"]
[SourceTitle "playchess.com"]
[Source "ChessBase"]
[SourceQuality "1"]
[WhiteTeam "Mexico"]
[BlackTeam "Uzbekistan"]
[WhiteTeamCountry "MEX"]
[BlackTeamCountry "UZB"]
[TimeControl "40/5400+30:1800+30"]

1. c4 {[%emt 0:00:06]} e5 {[%emt 0:00:14]} 2. g3 {[%emt 0:00:09]} d6 {[%emt 0:00:09]} 3. Bg2 {[%emt 0:00:07]} g6 {[%emt 0:00:07]} 4. Nc3 {[%emt 0:03:12]} Bg7 {[%emt 0:00:18]} 5. e4 {[%emt 0:02:00]} Nc6 {[%emt 0:02:11]} 6. Nge2 {[%emt 0:00:24]} Nge7 {[%emt 0:00:40]} 7. O-O {[%emt 0:00:49]} O-O {[%emt 0:00:11]} 8. d3 {[%emt 0:01:07]} f5 {[%emt 0:08:43]} 9. Be3 {[%emt 0:08:31]} Be6 {[%emt 0:02:59]} 10. Qd2 {[%emt 0:05:05]} Rb8 {[%emt 0:07:47]} (10... Nd4 $11 {was preferrable.}) 11. Rab1 {[%emt 0:08:29]} (11. Nd5 $14 {is superior.}) 11... Nd4 $11 {[%emt 0:01:48]} 12. f4 {[%emt 0:07:02]} c5 {[%emt 0:06:35]} 13. fxe5 {[%emt 0:15:26]} dxe5 {[%emt 0:01:26]} 14. Nd5 {[%emt 0:02:03]} b5 {[%emt 0:06:00]} 15. Nxd4 {[%emt 0:05:56]} cxd4 {[%emt 0:13:24]} 16. Bg5 {[%emt 0:04:40]} Bxd5 {[%emt 0:00:30]} 17. cxd5 {[%emt 0:00:37]} Bf6 {[%emt 0:02:16]} 18. Bh6 {[%emt 0:06:37]} Bg7 {[%emt 0:01:26]} 19. Bg5 {[%emt 0:05:47]} Bf6 {[%emt 0:04:08]} 20. Bh6 {[%emt 0:07:29]} Bg7 {[%emt 0:01:10]} 21. Bg5 {[%emt 0:13:49]} Qd7 {[%emt 0:01:44]} 22. Rbc1 {[%emt 0:00:20]} fxe4 {[%emt 0:02:48]} 23. Rxf8+ {[%emt 0:00:28]} Bxf8 {[%emt 0:00:45]} 24. dxe4 {[%emt 0:00:06]} Nc8 {[%emt 0:01:19]} 25. h4 {[%emt 0:01:41]} Nd6 {[%emt 0:00:11]} 26. Bf6 {[%emt 0:00:47]} Bg7 {[%emt 0:00:29]} 27. Bxg7 {[%emt 0:00:31]} Kxg7 {[%emt 0:01:19]} 28. Kh2 {[%emt 0:00:29]} Nc4 {[%emt 0:01:47]} 29. Qe2 {[%emt 0:00:23]} Rf8 {[%emt 0:00:34]} 30. b3 {[%emt 0:00:20]} Ne3 {[%emt 0:00:13]} 31. Rc6 {[%emt 0:00:24]} Qf7 {[%emt 0:00:18]} 32. Kg1 {[%emt 0:00:48]} h5 {[%emt 0:12:49]} 33. d6 {[%emt 0:00:46]} Kg8 {[%emt 0:03:43]} 34. Bh3 {[%emt 0:00:23]} Ng4 {[%emt 0:00:07]} 35. Bxg4 {[%emt 0:00:28]} hxg4 {[%emt 0:00:05]} 36. Rc5 {[%emt 0:00:00]} 0-1